fUST/lending_fUST_20250708
["ID","MTS","AMOUNT","RATE_DAILY","PERIOD"]
[370378575,1751987444268,-460.0,0.00019178,2]
[370378576,1751987444277,-460.0,0.00019178,2]
[370378577,1751987444287,-2315.09,0.00019178,2]
[370378578,1751987444296,-460.0,0.00019178,2]
[370378579,1751987444305,-460.0,0.00019178,2]
[370378580,1751987444314,-500.0,0.00019178,2]
[370378581,1751987444323,-460.0,0.00019178,2]
[370378582,1751987444333,-500.0,0.00019178,2]
[370378583,1751987444342,-500.0,0.00019178,2]
[370378584,1751987444352,-278.47987015,0.00019178,2]
[370378585,1751987444361,-779.96,0.00019178,2]
[370378586,1751987444370,-460.0,0.00019178,2]
[370378587,1751987444380,-1458.11,0.00019178,2]
[370378588,1751987444389,-460.0,0.00019178,2]
[370378589,1751987444399,-768.26,0.00019178,2]
[370378590,1751987444408,-460.0,0.00019178,2]
[370378591,1751987444418,-460.0,0.00019178,2]
[370378592,1751987444428,-1247.08,0.00019178,2]
[370378593,1751987444438,-814.03,0.00019178,2]
[370378594,1751987444447,-460.0,0.00019178,2]
[370378595,1751987444456,-541.4876672,0.00019178,2]
[370378596,1751987444465,-341.49511716,0.00019178,2]
[370378597,1751987444474,-460.0,0.00019178,2]
[370378598,1751987444484,-460.0,0.00019178,2]
[370378599,1751987444493,-460.0,0.00019178,2]
[370378600,1751987444502,-1873.14,0.00019178,2]
[370378601,1751987444511,-460.0,0.00019178,2]
[370378602,1751987444521,-460.0,0.00019178,2]
[370378603,1751987444531,-460.0,0.00019178,2]
[370378604,1751987444541,-460.0,0.00019178,2]
[370378605,1751987444551,-503.68,0.00019178,2]
[370378606,1751987444560,-460.0,0.00019178,2]
[370378607,1751987444569,-460.0,0.00019178,2]
[370378608,1751987444579,-460.0,0.00019178,2]
[370378609,1751987444588,-510.97,0.00019178,2]
[370378610,1751987444598,-460.0,0.00019178,2]
[370378611,1751987444607,-460.0,0.00019178,2]
[370378612,1751987444617,-460.89827359,0.00019178,2]
[370378613,1751987444626,-460.0,0.00019178,2]
[370378614,1751987444635,-460.0,0.00019178,2]
[370378615,1751987444645,-1198.65,0.00019178,2]
[370378616,1751987444655,-376.59205639,0.00019178,2]
[370378617,1751987444664,-460.0,0.00019178,2]
[370378618,1751987444673,-460.0,0.00019178,2]
[370378619,1751987444683,-460.0,0.00019178,2]
[370378620,1751987444692,-460.0,0.00019178,2]
[370378621,1751987444701,-460.0,0.00019178,2]
[370378622,1751987444711,-460.0,0.00019178,2]
[370378623,1751987444720,-460.0,0.00019178,2]
[370378624,1751987444730,-485.36,0.00019178,2]
[370378625,1751987444739,-3642.47,0.00019178,2]
[370378626,1751987444749,-460.0,0.00019178,2]
[370378627,1751987444758,-460.0,0.00019178,2]
[370378628,1751987444768,-3488.24,0.00019178,2]
[370378629,1751987444777,-460.0,0.00019178,2]
[370378630,1751987444786,-881.6,0.00019178,2]
[370378631,1751987444795,-460.0,0.00019178,2]
[370378632,1751987444804,-460.0,0.00019178,2]
[370378633,1751987444814,-558.94869864,0.00019178,2]
[370378634,1751987444823,-460.0,0.00019178,2]
[370378635,1751987444832,-347.76569123,0.00019178,2]
[370378636,1751987444842,-460.0,0.00019178,2]
[370378637,1751987444852,-1190.04,0.00019178,2]
[370378638,1751987444861,-5308.08,0.00019178,2]
[370378639,1751987444871,-460.0,0.00019178,2]
[370378640,1751987444881,-460.0,0.00019178,2]
[370378641,1751987444890,-540.0,0.00019178,2]
[370378642,1751987444900,-460.91132024,0.00019178,2]
[370378643,1751987444910,-460.0,0.00019178,2]
[370378644,1751987444919,-461.52114138,0.00019178,2]
[370378645,1751987444929,-858.29,0.00019178,2]
[370378646,1751987444938,-242.05520208,0.00019178,2]
[370378647,1751987444947,-359.31879438,0.00019178,2]
[370378648,1751987444956,-460.0,0.00019178,2]
[370378649,1751987444966,-460.0,0.00019178,2]
[370378650,1751987444975,-460.0,0.00019178,2]
[370378651,1751987444985,-460.0,0.00019178,2]
[370378652,1751987444995,-460.0,0.00019178,2]
[370378653,1751987445005,-460.0,0.00019178,2]
[370378654,1751987445015,-460.0,0.00019178,2]
[370378655,1751987445024,-460.0,0.00019178,2]
[370378656,1751987445034,-460.0,0.00019178,2]
[370378657,1751987445043,-460.0,0.00019178,2]
[370378658,1751987445052,-693.69,0.00019178,2]
[370378659,1751987445062,-889.03,0.00019178,2]
[370378660,1751987445072,-911.11,0.00019178,2]
[370378661,1751987445081,-460.0,0.00019178,2]
[370378662,1751987445091,-460.0,0.00019178,2]
[370378663,1751987445103,-460.0,0.00019178,2]
[370378664,1751987445112,-460.0,0.00019178,2]
[370378665,1751987445121,-462.52326736,0.00019178,2]
[370378666,1751987445131,-460.0,0.00019178,2]
[370378667,1751987445140,-849.52,0.00019178,2]
[370378668,1751987445150,-512.35,0.00019178,2]
[370378669,1751987445159,-460.0,0.00019178,2]
[370378670,1751987445168,-1608.55,0.00019178,2]
[370378671,1751987445179,-460.0,0.00019178,2]
[370378672,1751987445188,-460.0,0.00019178,2]
[370378673,1751987445197,-1680.8,0.00019178,2]
[370378674,1751987445207,-460.0,0.00019178,2]
[370378675,1751987445216,-3263.91,0.00019178,2]
[370378676,1751987445226,-460.0,0.00019178,2]
[370378677,1751987445235,-460.0,0.00019178,2]
[370378678,1751987445245,-825.63,0.00019178,2]
[370378679,1751987445256,-1917.38,0.00019178,2]
[370378680,1751987445266,-460.0,0.00019178,2]
[370378681,1751987445275,-460.0,0.00019178,2]
[370378682,1751987445285,-460.0,0.00019178,2]
[370378683,1751987445294,-460.0,0.00019178,2]
[370378684,1751987445303,-460.25137777,0.00019178,2]
[370378685,1751987445312,-460.0,0.00019178,2]
[370378686,1751987445321,-460.0,0.00019178,2]
[370378687,1751987445330,-460.0,0.00019178,2]
[370378688,1751987445340,-460.0,0.00019178,2]
[370378689,1751987445351,-460.0,0.00019178,2]
[370378690,1751987445360,-460.0,0.00019178,2]
[370378691,1751987445369,-1349.37,0.00019178,2]
[370378692,1751987445378,-460.0,0.00019178,2]
[370378693,1751987445388,-460.0,0.00019178,2]
[370378694,1751987445397,-460.0,0.00019178,2]
[370378695,1751987445407,-460.0,0.00019178,2]
[370378696,1751987445417,-460.0,0.00019178,2]
[370378697,1751987445427,-7169.81,0.00019178,2]
[370378698,1751987445436,-461.19412951,0.00019178,2]
[370378699,1751987445446,-460.0,0.00019178,2]
[370378700,1751987445455,-460.0,0.00019178,2]
[370378701,1751987445465,-3212.24,0.00019178,2]
[370378702,1751987445475,-764.25,0.00019178,2]
[370378703,1751987445484,-460.0,0.00019178,2]
[370378704,1751987445494,-460.0,0.00019178,2]
[370378705,1751987445503,-460.0,0.00019178,2]
[370378706,1751987445512,-460.0,0.00019178,2]
[370378707,1751987445521,-975.12,0.00019178,2]
[370378708,1751987445530,-217.22977328,0.00019178,2]
[370378709,1751987445540,-460.0,0.00019178,2]
[370378710,1751987445549,-460.0,0.00019178,2]
[370378711,1751987445559,-3732.02,0.00019178,2]
[370378712,1751987445569,-460.0,0.00019178,2]
[370378713,1751987445578,-460.0,0.00019178,2]
[370378714,1751987445588,-460.0,0.00019178,2]
[370378715,1751987445599,-460.0,0.00019178,2]
[370378716,1751987445609,-517.2,0.00019178,2]
[370378717,1751987445618,-395.17628783,0.00019178,2]
[370378718,1751987445628,-1124.04,0.00019178,2]
[370378719,1751987445637,-460.0,0.00019178,2]
[370378720,1751987445646,-460.0,0.00019178,2]
[370378721,1751987445656,-460.0,0.00019178,2]
[370378722,1751987445666,-460.0,0.00019178,2]
[370378723,1751987445676,-460.0,0.00019178,2]
[370378724,1751987445685,-460.0,0.00019178,2]
[370378725,1751987445694,-337.695128,0.00019178,2]
[370378726,1751987445704,-151.0,0.000192,2]
[370378727,1751987445713,-194.52350612,0.00019321,2]
[370378728,1751987445723,-6732.0592795,0.00019329,2]
[370378729,1751987445733,-151.0,0.000194,2]
[370378730,1751987445743,-151.0,0.000194,2]
[370378731,1751987445752,-443.30882593,0.00019421,2]
[370378732,1751987445762,-1000.0,0.00019421,2]
[370378733,1751987445772,-460.0,0.00019452,2]
[370378734,1751987445781,-581.21027934,0.00019452,2]
[370378735,1751987445791,-460.0,0.00019452,2]
[370378736,1751987445801,-544.06228736,0.00019452,2]
[370378737,1751987445811,-460.0,0.00019452,2]
[370378738,1751987445820,-460.0,0.00019452,2]
[370378740,1751987445830,-460.0,0.00019452,2]
[370378741,1751987445839,-460.0,0.00019452,2]
[370378744,1751987445851,-460.0,0.00019452,2]
[370378747,1751987445861,-460.0,0.00019452,2]
[370378749,1751987445870,-460.0,0.00019452,2]
[370378751,1751987445880,-460.0,0.00019452,2]
[370378753,1751987445889,-460.0,0.00019452,2]
[370378755,1751987445899,-460.0,0.00019452,2]
[370378757,1751987445909,-460.0,0.00019452,2]
[370378759,1751987445918,-540.0,0.00019452,2]
[370378761,1751987445928,-462.61254103,0.00019452,2]
[370378763,1751987445938,-354.89810426,0.00019452,2]
[370378765,1751987445948,-460.0,0.00019452,2]
[370378767,1751987445957,-460.0,0.00019452,2]
[370378768,1751987445967,-460.0,0.00019452,2]
[370378770,1751987445976,-460.0,0.00019452,2]
[370378772,1751987445986,-520.37,0.00019452,2]
[370378775,1751987445999,-460.0,0.00019452,2]
[370378777,1751987446008,-460.0,0.00019452,2]
[370378779,1751987446018,-460.0,0.00019452,2]
[370378781,1751987446027,-465.44908847,0.00019452,2]
[370378782,1751987446037,-460.0,0.00019452,2]
[370378784,1751987446046,-462.7614612,0.00019452,2]
[370378786,1751987446055,-365.67973378,0.00019452,2]
[370378788,1751987446064,-460.0,0.00019452,2]
[370378789,1751987446074,-460.0,0.00019452,2]
[370378790,1751987446083,-460.0,0.00019452,2]
[370378792,1751987446092,-460.0,0.00019452,2]
[370378794,1751987446102,-460.0,0.00019452,2]
[370378796,1751987446111,-460.0,0.00019452,2]
[370378797,1751987446120,-644.05,0.00019452,2]
[370378799,1751987446130,-460.0,0.00019452,2]
[370378801,1751987446139,-254.2608185,0.00019452,2]
[370378803,1751987446149,-460.0,0.00019452,2]
[370378805,1751987446158,-460.0,0.00019452,2]
[370378807,1751987446168,-460.0,0.00019452,2]
[370378808,1751987446186,-461.7889499,0.00019452,2]
[370378809,1751987446201,-460.0,0.00019452,2]
[370378810,1751987446211,-438.26491176,0.00019452,2]
[370378812,1751987446220,-460.0,0.00019452,2]
[370378814,1751987446230,-460.0,0.00019452,2]
[370378815,1751987446241,-279.1026067,0.00019452,2]
[370378816,1751987446252,-521.65718421,0.00019452,2]
[370378817,1751987446263,-460.0,0.00019452,2]
[370378818,1751987446274,-460.0,0.00019452,2]
[370378819,1751987446284,-460.0,0.00019452,2]
[370378820,1751987446293,-460.0,0.00019452,2]
[370378821,1751987446302,-461.09806513,0.00019452,2]
[370378822,1751987446312,-460.0,0.00019452,2]
[370378823,1751987446322,-460.0,0.00019452,2]
[370378824,1751987446331,-460.0,0.00019452,2]
[370378825,1751987446341,-444.35659106,0.00019452,2]
[370378826,1751987446352,-460.0,0.00019452,2]
[370378827,1751987446362,-461.88848629,0.00019452,2]
[370378828,1751987446371,-460.0,0.00019452,2]
[370378829,1751987446380,-460.0,0.00019452,2]
[370378830,1751987446389,-460.0,0.00019452,2]
[370378831,1751987446399,-491.71760817,0.00019452,2]
[370378832,1751987446408,-460.0,0.00019452,2]
[370378833,1751987446417,-460.0,0.00019452,2]
[370378834,1751987446426,-460.0,0.00019452,2]
[370378835,1751987446436,-468.15749242,0.00019452,2]
[370378836,1751987446445,-460.0,0.00019452,2]
[370378837,1751987446455,-460.0,0.00019452,2]
[370378838,1751987446464,-213.12816697,0.00019452,2]
[370378839,1751987446473,-460.0,0.00019452,2]
[370378840,1751987446482,-460.0,0.00019452,2]
[370378841,1751987446491,-460.0,0.00019452,2]
[370378842,1751987446500,-460.0,0.00019452,2]
[370378843,1751987446509,-460.0,0.00019452,2]
[370378844,1751987446519,-460.0,0.00019452,2]
[370378845,1751987446528,-461.07781412,0.00019452,2]
[370378846,1751987446537,-460.0,0.00019452,2]
[370378847,1751987446547,-500.0,0.00019452,2]
[370378848,1751987446557,-460.0,0.00019452,2]
[370378849,1751987446567,-460.0,0.00019452,2]
[370378851,1751987446577,-460.0,0.00019452,2]
[370378852,1751987446587,-460.0,0.00019452,2]
[370378854,1751987446598,-716.48027958,0.00019452,2]
[370378856,1751987446607,-475.4235852,0.00019452,2]
[370378858,1751987446617,-590.3,0.00019452,2]
[370378860,1751987446626,-460.0,0.00019452,2]
[370378861,1751987446635,-460.0,0.00019452,2]
[370378862,1751987446644,-460.0,0.00019452,2]
[370378863,1751987446653,-460.0,0.00019452,2]
[370378864,1751987446663,-460.0,0.00019452,2]
[370378865,1751987446672,-460.0,0.00019452,2]
[370378866,1751987446682,-460.0,0.00019452,2]
[370378867,1751987446691,-596.01132318,0.00019452,2]
[370378868,1751987446701,-460.0,0.00019452,2]
[370378869,1751987446711,-460.0,0.00019452,2]
[370378870,1751987446721,-469.88910191,0.00019452,2]
[370378871,1751987446730,-460.0,0.00019452,2]
[370378872,1751987446740,-460.0,0.00019452,2]
[370378873,1751987446750,-460.0,0.00019452,2]
[370378874,1751987446759,-460.0,0.00019452,2]
[370378875,1751987446769,-460.0,0.00019452,2]
[370378876,1751987446780,-460.0,0.00019452,2]
[370378877,1751987446790,-460.0,0.00019452,2]
[370378878,1751987446799,-460.0,0.00019452,2]
[370378879,1751987446809,-460.0,0.00019452,2]
[370378880,1751987446818,-460.0,0.00019452,2]
[370378881,1751987446828,-571.79,0.00019452,2]
[370378882,1751987446837,-460.0,0.00019452,2]
[370378883,1751987446846,-460.0,0.00019452,2]
[370378884,1751987446856,-460.0,0.00019452,2]
[370378885,1751987446866,-655.17,0.00019452,2]
[370378886,1751987446875,-460.0,0.00019452,2]
[370378887,1751987446885,-460.0,0.00019452,2]
[370378888,1751987446894,-460.0,0.00019452,2]
[370378889,1751987446904,-430.0,0.00019452,2]
[370378890,1751987446915,-243.60161728,0.00019452,2]
[370378891,1751987446925,-460.0,0.00019452,2]
[370378892,1751987446934,-460.0,0.00019452,2]
[370378893,1751987446944,-460.0,0.00019452,2]
[370378894,1751987446953,-460.0,0.00019452,2]
[370378895,1751987446963,-460.0,0.00019452,2]
[370378896,1751987446973,-460.0,0.00019452,2]
[370378897,1751987446982,-460.0,0.00019452,2]
[370378898,1751987446994,-460.0,0.00019452,2]
[370378899,1751987447003,-460.0,0.00019452,2]
[370378900,1751987447012,-460.0,0.00019452,2]
[370378901,1751987447021,-460.0,0.00019452,2]
[370378902,1751987447031,-216.55430421,0.00019452,2]
[370378903,1751987447040,-460.0,0.00019452,2]
[370378904,1751987447049,-460.0,0.00019452,2]
[370378905,1751987447058,-460.0,0.00019452,2]
[370378906,1751987447067,-464.38289261,0.00019452,2]
[370378907,1751987447076,-460.0,0.00019452,2]
[370378908,1751987447086,-460.0,0.00019452,2]
[370378910,1751987447097,-460.0,0.00019452,2]
[370378912,1751987447107,-463.13170507,0.00019452,2]
[370378914,1751987447116,-460.0,0.00019452,2]
[370378916,1751987447125,-460.0,0.00019452,2]
[370378917,1751987447135,-460.0,0.00019452,2]
[370378918,1751987447307,-1068.61,0.00019452,2]
[370378919,1751987447317,-460.0,0.00019452,2]
[370378920,1751987447327,-460.0,0.00019452,2]
[370378921,1751987447336,-460.0,0.00019452,2]
[370378922,1751987447346,-460.0,0.00019452,2]
[370378923,1751987447355,-464.85381199,0.00019452,2]
[370378924,1751987447365,-460.0,0.00019452,2]
[370378925,1751987447374,-460.0,0.00019452,2]
[370378926,1751987447384,-460.0,0.00019452,2]
[370378927,1751987447393,-460.0,0.00019452,2]
[370378928,1751987447403,-460.0,0.00019452,2]
[370378929,1751987447413,-197.12501723,0.00019452,2]
[370378930,1751987447423,-990.47,0.00019452,2]
[370378931,1751987447432,-460.0,0.00019452,2]
[370378932,1751987447442,-460.0,0.00019452,2]
[370378933,1751987447451,-460.0,0.00019452,2]
[370378934,1751987447460,-460.0,0.00019452,2]
[370378935,1751987447470,-460.0,0.00019452,2]
[370378936,1751987447479,-460.0,0.00019452,2]
[370378937,1751987447488,-460.0,0.00019452,2]
[370378938,1751987447498,-460.0,0.00019452,2]
[370378939,1751987447508,-460.0,0.00019452,2]
[370378940,1751987447517,-460.0,0.00019452,2]
[370378941,1751987447526,-529.08,0.00019452,2]
[370378942,1751987447535,-460.0,0.00019452,2]
[370378943,1751987447544,-460.0,0.00019452,2]
[370378944,1751987447554,-460.0,0.00019452,2]
[370378945,1751987447564,-460.0,0.00019452,2]
[370378946,1751987447573,-1094.43,0.00019452,2]
[370378947,1751987447583,-460.0,0.00019452,2]
[370378948,1751987447592,-460.0,0.00019452,2]
[370378949,1751987447602,-460.0,0.00019452,2]
[370378950,1751987447612,-460.0,0.00019452,2]
[370378951,1751987447621,-460.0,0.00019452,2]
[370378952,1751987447630,-460.0,0.00019452,2]
[370378953,1751987447640,-460.0,0.00019452,2]
[370378954,1751987447649,-460.0,0.00019452,2]
[370378955,1751987447658,-610.0,0.00019452,2]
[370378956,1751987447668,-460.0,0.00019452,2]
[370378957,1751987447677,-460.0,0.00019452,2]
[370378958,1751987447687,-460.0,0.00019452,2]
[370378959,1751987447696,-460.0,0.00019452,2]
[370378960,1751987447706,-460.0,0.00019452,2]
[370378961,1751987447716,-263.14941449,0.00019452,2]
[370378962,1751987447725,-500.0,0.00019452,2]
[370378963,1751987447735,-500.0,0.00019452,2]
[370378964,1751987447744,-460.0,0.00019452,2]
[370378965,1751987447754,-460.0,0.00019452,2]
[370378966,1751987447763,-460.0,0.00019452,2]
[370378967,1751987447773,-460.0,0.00019452,2]
[370378968,1751987447782,-460.0,0.00019452,2]
[370378969,1751987447792,-460.0,0.00019452,2]
[370378970,1751987447801,-500.81235246,0.00019452,2]
[370378971,1751987447811,-460.0,0.00019452,2]
[370378972,1751987447820,-702.73,0.00019452,2]
[370378973,1751987447829,-460.0,0.00019452,2]
[370378974,1751987447839,-460.0,0.00019452,2]
[370378975,1751987447851,-460.0,0.00019452,2]
[370378976,1751987447861,-460.0,0.00019452,2]
[370378977,1751987447870,-460.0,0.00019452,2]
[370378978,1751987447880,-460.0,0.00019452,2]
[370378979,1751987447890,-460.0,0.00019452,2]
[370378980,1751987447899,-605.54118815,0.00019452,2]
[370378981,1751987447908,-460.0,0.00019452,2]
[370378982,1751987447918,-460.0,0.00019452,2]
[370378983,1751987447928,-460.0,0.00019452,2]
[370378984,1751987447938,-460.0,0.00019452,2]
[370378985,1751987447947,-460.0,0.00019452,2]
[370378986,1751987447957,-460.0,0.00019452,2]
[370378987,1751987447967,-460.0,0.00019452,2]
[370378988,1751987447977,-2535.92,0.00019452,2]
[370378989,1751987447987,-460.0,0.00019452,2]
[370378990,1751987447996,-460.0,0.00019452,2]
[370378991,1751987448005,-460.0,0.00019452,2]
[370378992,1751987448015,-1117.62,0.00019452,2]
[370378993,1751987448024,-460.0,0.00019452,2]
[370378994,1751987448033,-460.0,0.00019452,2]
[370378995,1751987448043,-460.0,0.00019452,2]
[370378996,1751987448052,-460.0,0.00019452,2]
[370378997,1751987448062,-460.0,0.00019452,2]
[370378998,1751987448071,-460.0,0.00019452,2]
[370378999,1751987448080,-460.0,0.00019452,2]
[370379000,1751987448090,-460.0,0.00019452,2]
[370379001,1751987448100,-588.12711238,0.00019452,2]
[370379002,1751987448110,-460.0,0.00019452,2]
[370379003,1751987448119,-460.0,0.00019452,2]
[370379004,1751987448128,-460.0,0.00019452,2]
[370379005,1751987448138,-357.64424055,0.00019452,2]
[370379006,1751987448148,-460.0,0.00019452,2]
[370379007,1751987448159,-489.06,0.00019452,2]
[370379008,1751987448168,-638.54,0.00019452,2]
[370379009,1751987448180,-460.0,0.00019452,2]
[370379010,1751987448190,-460.0,0.00019452,2]
[370379011,1751987448199,-460.0,0.00019452,2]
[370379012,1751987448209,-460.0,0.00019452,2]
[370379013,1751987448219,-460.0,0.00019452,2]
[370379014,1751987448228,-460.0,0.00019452,2]
[370379015,1751987448238,-906.56,0.00019452,2]
[370379016,1751987448249,-460.0,0.00019452,2]
[370379017,1751987448260,-6605.47,0.00019452,2]
[370379018,1751987448269,-460.0,0.00019452,2]
[370379019,1751987448279,-1836.51,0.00019452,2]
[370379020,1751987448288,-460.0,0.00019452,2]
[370379021,1751987448298,-3531.13,0.00019452,2]
[370379022,1751987448308,-460.0,0.00019452,2]
[370379023,1751987448318,-460.0,0.00019452,2]
[370379024,1751987448327,-769.53,0.00019452,2]
[370379025,1751987448336,-460.0,0.00019452,2]
[370379026,1751987448347,-460.0,0.00019452,2]
[370379027,1751987448356,-460.0,0.00019452,2]
[370379028,1751987448366,-4999.22,0.00019452,2]
[370379029,1751987448376,-460.0,0.00019452,2]
[370379030,1751987448386,-460.0,0.00019452,2]
[370379031,1751987448396,-1438.66,0.00019452,2]
[370379032,1751987448405,-460.0,0.00019452,2]
[370379033,1751987448415,-460.0,0.00019452,2]
[370379034,1751987448424,-460.0,0.00019452,2]
[370379035,1751987448434,-460.0,0.00019452,2]
[370379036,1751987448443,-460.0,0.00019452,2]
[370379037,1751987448453,-1029.02,0.00019452,2]
[370379038,1751987448462,-551.13,0.00019452,2]
[370379039,1751987448471,-3199.43,0.00019452,2]
[370379040,1751987448481,-460.0,0.00019452,2]
[370379041,1751987448490,-460.0,0.00019452,2]
[370379042,1751987448500,-460.0,0.00019452,2]
[370379043,1751987448509,-460.0,0.00019452,2]
[370379044,1751987448519,-1136.93,0.00019452,2]
[370379045,1751987448529,-461.98817808,0.00019452,2]
[370379046,1751987448538,-500.0,0.00019452,2]
[370379047,1751987448548,-460.0,0.00019452,2]
[370379048,1751987448557,-460.0,0.00019452,2]
[370379049,1751987448566,-1227.68,0.00019452,2]
[370379050,1751987448576,-802.39,0.00019452,2]
[370379051,1751987448585,-460.0,0.00019452,2]
[370379052,1751987448595,-460.0,0.00019452,2]
[370379053,1751987448604,-2315.09,0.00019452,2]
[370379054,1751987448614,-460.0,0.00019452,2]
[370379055,1751987448623,-460.0,0.00019452,2]
[370379056,1751987448633,-779.96,0.00019452,2]
[370379057,1751987448642,-460.0,0.00019452,2]
[370379058,1751987448652,-768.26,0.00019452,2]
[370379059,1751987448662,-460.0,0.00019452,2]
[370379060,1751987448671,-460.0,0.00019452,2]
[370379061,1751987448680,-1247.08,0.00019452,2]
[370379062,1751987448690,-814.03,0.00019452,2]
[370379063,1751987448700,-460.0,0.00019452,2]
[370379064,1751987448709,-1458.11,0.00019452,2]
[370379065,1751987448719,-482.61461814,0.00019452,2]
[370379066,1751987448728,-460.0,0.00019452,2]
[370379067,1751987448738,-1873.14,0.00019452,2]
[370379068,1751987448747,-460.0,0.00019452,2]
[370379069,1751987448757,-460.0,0.00019452,2]
[370379070,1751987448767,-460.0,0.00019452,2]
[370379071,1751987448777,-503.68,0.00019452,2]
[370379072,1751987448787,-460.0,0.00019452,2]
[370379073,1751987448797,-460.0,0.00019452,2]
[370379074,1751987448807,-460.0,0.00019452,2]
[370379075,1751987448816,-510.97,0.00019452,2]
[370379076,1751987448826,-460.0,0.00019452,2]
[370379077,1751987448835,-460.0,0.00019452,2]
[370379078,1751987448844,-460.0,0.00019452,2]
[370379079,1751987448855,-460.0,0.00019452,2]
[370379080,1751987448865,-1198.65,0.00019452,2]
[370379081,1751987448874,-460.0,0.00019452,2]
[370379082,1751987448884,-460.0,0.00019452,2]
[370379083,1751987448893,-493.90822989,0.00019452,2]
[370379084,1751987448903,-460.0,0.00019452,2]
[370379085,1751987448912,-460.0,0.00019452,2]
[370379086,1751987448922,-460.0,0.00019452,2]
[370379087,1751987448931,-460.0,0.00019452,2]
[370379088,1751987448941,-485.36,0.00019452,2]
[370379089,1751987448950,-3642.47,0.00019452,2]
[370379090,1751987448960,-460.0,0.00019452,2]
[370379091,1751987448969,-460.0,0.00019452,2]
[370379092,1751987448979,-3488.24,0.00019452,2]
[370379093,1751987448989,-460.0,0.00019452,2]
[370379094,1751987448998,-881.6,0.00019452,2]
[370379095,1751987449008,-460.0,0.00019452,2]
[370379096,1751987449017,-460.0,0.00019452,2]
[370379097,1751987449027,-460.0,0.00019452,2]
[370379098,1751987449036,-460.0,0.00019452,2]
[370379099,1751987449046,-1190.04,0.00019452,2]
[370379100,1751987449055,-5308.08,0.00019452,2]
[370379101,1751987449064,-200.47071203,0.00019452,2]
[370379102,1751987449074,-460.0,0.00019452,2]
[370379103,1751987449084,-858.29,0.00019452,2]
[370379104,1751987449093,-460.0,0.00019452,2]
[370379105,1751987449106,-460.0,0.00019452,2]
[370379106,1751987449115,-460.0,0.00019452,2]
[370379107,1751987449125,-460.0,0.00019452,2]
[370379108,1751987449136,-460.0,0.00019452,2]
[370379109,1751987449145,-693.69,0.00019452,2]
[370379110,1751987449154,-889.03,0.00019452,2]
[370379111,1751987449164,-911.11,0.00019452,2]
[370379112,1751987449175,-460.0,0.00019452,2]
[370379113,1751987449187,-460.0,0.00019452,2]
[370379114,1751987449198,-460.0,0.00019452,2]
[370379115,1751987449207,-849.52,0.00019452,2]
[370379116,1751987449218,-512.35,0.00019452,2]
[370379117,1751987449227,-460.0,0.00019452,2]
[370379118,1751987449237,-1608.55,0.00019452,2]